[Event "81st Italian Championship 2022"]
[Site "Cagliari"]
[Date "2022.11.21"]
[Round "9.5"]
[White "Di Benedetto, Edoardo"]
[Black "Moroni, Luca Jr"]
[Result "0-1"]
[ECO "D12"]
[WhiteElo "2378"]
[BlackElo "2559"]
[Annotator "TA"]
[PlyCount "104"]
[EventDate "2022.11.12"]
[EventType "tourn"]
[EventCountry "ITA"]
[SourceTitle "playchess.com"]
[Source "ChessBase"]
[SourceQuality "1"]
[TimeControl "40/6000+30:20/3000:900+30"]

{[%evp 11,104,0,1,0,0,-5,2,-27,-46,-37,-9,-27,-16,-21,-10,-26,-38,-20,-32,-28,-16,-16,0,0,0,-14,-11,-36,-22,-21,-29,-65,-47,-61,-54,-51,-51,-62,-55,-68,-50,-109,-74,-87,-85,-87,-89,-89,-57,-81,-54,-85,-102,-102,-86,-84,-73,-83,-87,-216,-115,-206,-100,-108,0,-124,-124,-137,-111,-133,-85,-158,-68,-69,-68,-35,0,-75,-79,-100,-58,-58,-60,-208,-170,-463,-479,-998,-994,-1621,-581,-29968,-535,-1633,-1349]} 1. a3 {[%emt 0:05:37]} d5 {[%emt 0:04:19]} 2. e3 {[%emt 0:06:27]} Nf6 {[%emt 0:03:44]} 3. Nf3 {[%emt 0:00:06]} Bf5 {[%emt 0:00:41]} 4. c4 {[%emt 0:01:36]} e6 {[%emt 0:00:41]} 5. Nc3 {[%emt 0:02:23]} c6 {[%emt 0:05:27]} 6. d4 {[%emt 0:00:49]} Nbd7 {[%emt 0:01:49]} 7. Bd3 {[%emt 0:01:25] D12: Slav Defence: 3 Nf3 Nf6 4 e3 Bf5.} Bg6 {[%emt 0:02:24]} 8. Qe2 {[%emt 0:05:12]} Ne4 {[%emt 0:07:22] [#]} 9. Bxe4 $146 {[%emt 0:06:16] The position is equal.} ({Predecessor:} 9. Nd2 f5 10. O-O Bd6 11. f3 Nxd2 12. Bxd2 O-O 13. b4 Qf6 14. c5 Bc7 15. f4 {1-0 (32) Vivekananthan,A (2305)-Lu,M (2140) Charlotte 2020}) 9... dxe4 {[%emt 0:01:49]} 10. Nd2 {[%emt 0:00:21]} Nf6 {[%emt 0:08:24][%cal Oe6e5]} 11. f3 {[%emt 0:06:44]} exf3 {[%emt 0:08:03]} 12. Nxf3 {[%emt 0:01:22]} Ne4 {[%emt 0:03:56]} 13. Nxe4 {[%emt 0:01:26]} Bxe4 {[%emt 0:00:02]} 14. Bd2 {[%emt 0:00:27]} Bd6 {[%emt 0:02:56]} 15. O-O {[%emt 0:02:29]} O-O {[%emt 0:02:45]} 16. Bb4 {[%emt 0:16:01]} c5 {[%emt 0:08:50]} 17. dxc5 {[%emt 0:00:07]} Be7 {[%emt 0:00:09] White must now prevent ...Bd3. A strong pair of Bishops.} 18. Rfd1 {[%emt 0:00:49] Prevents Bd3.} Qc7 {[%emt 0:01:47]} 19. Nd4 {[%emt 0:12:23]} a5 {[%emt 0:06:10]} 20. Bc3 {[%emt 0:00:17]} Qxc5 {[%emt 0:04:06]} 21. b4 {[%emt 0:03:14]} axb4 {[%emt 0:04:53]} 22. axb4 {[%emt 0:00:08]} Qg5 {[%emt 0:01:14]} 23. Nf3 {[%emt 0:02:49]} Qh5 {[%emt 0:02:03]} 24. c5 {[%emt 0:05:43]} Rxa1 {[%emt 0:02:03]} 25. Bxa1 {[%emt 0:04:49]} Ra8 {[%emt 0:01:26]} 26. Qf2 {[%emt 0:03:11]} (26. Bb2 $15) 26... e5 {[%emt 0:04:07]} 27. Bb2 {[%emt 0:02:27]} f6 {[%emt 0:00:52]} 28. Qe2 {[%emt 0:03:13] aiming for Qc4+.} Qf7 {[%emt 0:05:18] Against Qc4} 29. Nd2 {[%emt 0:00:59]} Bd5 {[%emt 0:00:22][%cal Ob7b6]} 30. Ra1 {[%emt 0:02:16]} Rd8 {[%emt 0:02:03][%cal Ob7b6]} 31. Ra7 {[%emt 0:05:39]} Bc6 {[%emt 0:01:53]} 32. e4 {[%emt 0:03:00]} Bf8 {[%emt 0:01:23]} 33. Bc3 {[%emt 0:01:17]} h6 {[%emt 0:03:10]} 34. h3 {[%emt 0:02:00]} Qd7 {[%emt 0:01:40]} 35. Kf2 {[%emt 0:02:29]} (35. Ra5 $17) 35... Kh7 {[%emt 0:04:03]} (35... Bb5 $19 36. Qd1 Ba6 37. Rxa6 bxa6) 36. Ra1 {[%emt 0:01:17]} (36. Nc4 $17) 36... Qe6 {[%emt 0:00:41]} (36... b6 $19 {has better winning chances.} 37. Nb3 (37. cxb6 $2 Bxb4 38. Ra7 Bc5+ 39. Kf1 Bb5 $19) 37... Bb5) 37. Kg1 {[%emt 0:00:25]} Qd7 {[%emt 0:00:25]} (37... Be7 $17 38. Ra5 f5) 38. Qe3 {[%emt 0:01:12]} (38. Kf2 $1 $11 {remains equal.}) 38... Bb5 $17 {[%emt 0:01:19]} 39. Rc1 {[%emt 0:00:55]} Qe6 {[%emt 0:00:49]} 40. Qf2 {[%emt 0:00:26]} Rd3 {[%emt 0:01:36]} (40... g6 $142 41. Nf1 h5) 41. Kh2 {[%emt 0:01:12]} ({White must play} 41. Nf1) 41... g6 {[%emt 0:13:00] Black is more active.} (41... Qa2 $17 {Threatens to win with ...Qa3.} 42. Qe1 Qf7) 42. Nb1 $15 {[%emt 0:13:40]} Bc6 {[%emt 0:08:52]} 43. Qf1 $1 {[%emt 0:02:41]} Bb5 {[%emt 0:04:18]} ({Worse is} 43... Bxe4 44. Nd2 Bf5 45. g4 $17) 44. Qf2 {[%emt 0:00:00]} Bg7 $36 {[%emt 0:01:09][%mdl 2048] Keeping White busy.} 45. Na3 {[%emt 0:00:12]} Bc6 {[%emt 0:00:48]} 46. Qe2 {[%emt 0:00:00]} Qd7 {[%emt 0:00:00] ...h5 is the strong threat.} 47. Rc2 {[%emt 0:06:57] [#]} (47. b5 $15 Bxb5 48. Nxb5 Qxb5 49. Rc2) 47... f5 $1 $19 {[%emt 0:03:48]} 48. exf5 $2 {[%emt 0:03:25]} (48. Nc4) 48... Qxf5 {[%emt 0:00:00][%cal Oc6g2]} 49. Qg4 {[%emt 0:11:22]} (49. Qe1 $142 Bxg2 50. Rxg2 Qxh3+ 51. Kg1) 49... Qf1 {[%emt 0:04:42] Hoping for ...Rd1.} 50. Nc4 {[%emt 0:00:00]} h5 {[%emt 0:05:49]} (50... Rd1 $142 {( -> ...Qg1+)} 51. Kg3 h5) 51. Qg5 {[%emt 0:00:00]} Bf6 {[%emt 0:00:20]} (51... Bh6 $142 52. Ne3 Rxe3 53. Qe7+ Bg7 54. Qg5 Qd3 55. Bd2 Re2 56. Rc3 Qxd2 57. Qxd2 Rxd2 58. Kg1 Rxg2+ 59. Kf1 Rb2 60. Ke1 e4 61. Ra3 Bd4 62. Kd1 e3 63. Rd3 Bf3+ 64. Kc1 {[#]} Be4 $1 65. Rxe3 Rc2+ 66. Kb1 Bxe3 67. Ka1 Re2 68. h4 Bd4#) 52. Qc1 {[%emt 0:00:00]} Rd1 {[%emt 0:00:56] Weighted Error Value: White=0.69/Black=0.39} 0-1

[Event "81st Italian Championship 2022"]
[Site "Cagliari"]
[Date "2022.11.21"]
[Round "9.6"]
[White "Dvirnyy, Danyyil"]
[Black "Lodici, Lorenzo"]
[Result "1-0"]
[ECO "C50"]
[WhiteElo "2514"]
[BlackElo "2536"]
[Annotator "TA"]
[PlyCount "113"]
[EventDate "2022.11.12"]
[EventType "tourn"]
[EventCountry "ITA"]
[SourceTitle "playchess.com"]
[Source "ChessBase"]
[SourceQuality "1"]
[TimeControl "40/6000+30:20/3000:900+30"]

{[%evp 13,113,10,10,9,16,-12,-15,-29,0,8,15,1,11,7,0,8,8,6,45,43,42,41,33,35,32,35,45,48,41,41,58,31,43,31,45,36,37,20,22,19,28,20,28,17,33,22,33,18,23,17,76,79,303,303,304,308,411,175,378,378,379,403,389,395,376,324,373,366,353,305,298,245,340,230,395,402,765,682,630,596,1085,1170,1210,799,11099,7449,4083,1896,29975,29976,29976,29977,29977,29978,29978,29979,29979,29980,29980,29981,29981,29981]} 1. e4 {[%emt 0:00:03]} e5 {[%emt 0:02:59]} 2. Nf3 {[%emt 0:00:10]} Nc6 {[%emt 0:00:02]} 3. Nc3 {[%emt 0:01:19]} Nf6 {[%emt 0:00:38]} 4. Bb5 {[%emt 0:03:35]} Bd6 {[%emt 0:05:00]} 5. d3 {[%emt 0:05:23]} h6 {[%emt 0:00:12]} 6. a3 {[%emt 0:01:37]} a6 {[%emt 0:00:05]} 7. Bc4 {[%emt 0:00:15]} Bc5 {[%emt 0:00:04]} 8. Be3 {[%emt 0:01:56] C50: Hungarian Defence and Giuoco Pianissimo.} d6 {[%emt 0:03:35]} 9. d4 {[%emt 0:24:07]} exd4 {[%emt 0:00:38]} 10. Nxd4 {[%emt 0:00:06] [#] The position is equal.} Bxd4 $146 {[%emt 0:09:28]} (10... Ne5 $5 {[%cal Re5c4]} 11. Be2 O-O $11) ({Predecessor:} 10... Nxd4 11. Bxd4 Qe7 12. O-O Bxd4 13. Qxd4 Qe5 14. Qxe5+ dxe5 15. f4 O-O 16. Nd5 Nxd5 17. exd5 b5 {1-0 (50) Book,E-Skold,K Stockholm 1946}) 11. Bxd4 {[%emt 0:00:12]} Be6 {[%emt 0:00:04]} 12. Be2 {[%emt 0:10:20]} O-O {[%emt 0:09:07]} 13. Be3 {[%emt 0:03:54]} d5 {[%emt 0:00:51]} 14. exd5 {[%emt 0:00:43]} Nxd5 {[%emt 0:00:06]} (14... Bxd5 {keeps more tension.} 15. O-O Re8 16. Re1 Be6) 15. Nxd5 {[%emt 0:00:32]} Qxd5 {[%emt 0:00:06]} (15... Bxd5 {seems wilder.} 16. Qd3 Re8 17. O-O-O Bxg2 18. Rhg1 Qxd3 19. Rxd3 Be4) 16. Qxd5 {[%emt 0:04:42]} Bxd5 {[%emt 0:00:33]} 17. f3 {[%emt 0:06:01]} Rad8 {[%emt 0:07:19]} 18. Kf2 {[%emt 0:02:55]} Be6 {[%emt 0:00:38]} 19. Rhd1 {[%emt 0:03:09]} Bf5 {[%emt 0:01:14]} 20. Rxd8 {[%emt 0:08:29]} Rxd8 {[%emt 0:00:43]} 21. Rc1 {[%emt 0:00:06]} Ne5 {[%emt 0:12:14]} 22. Rd1 {[%emt 0:01:35]} Rxd1 {[%emt 0:00:36]} 23. Bxd1 $14 {[%emt 0:00:04][%mdl 4096] Endgame KBB-KBN} f6 {[%emt 0:00:16]} 24. b3 {[%emt 0:01:52]} g5 {[%emt 0:06:17]} 25. Bd4 {[%emt 0:01:42]} Kf7 {[%emt 0:00:27]} 26. Ke3 {[%emt 0:01:45]} Ke7 {[%emt 0:02:37]} 27. Bc3 {[%emt 0:06:53]} b6 {[%emt 0:05:27]} 28. Be1 {[%emt 0:01:58]} a5 {[%emt 0:05:36]} 29. g4 {[%emt 0:02:47]} Bd7 {[%emt 0:00:57]} 30. Bg3 {[%emt 0:00:34]} c5 {[%emt 0:14:19]} 31. h3 {[%emt 0:01:45]} Bb5 {[%emt 0:02:04]} (31... a4 $11 {remains equal.}) 32. f4 {[%emt 0:06:39]} Nd7 {[%emt 0:00:31] Loses the game.} (32... Nc6 $16 {might work better.}) 33. c4 $18 {[%emt 0:02:39]} Ba6 {[%emt 0:01:58][%cal Oa5a4] [#]} 34. a4 $1 {[%emt 0:00:43]} Nf8 {[%emt 0:01:20]} 35. fxg5 {[%emt 0:00:34]} (35. f5 $142) 35... hxg5 $2 {[%emt 0:00:02] [#]} (35... fxg5 {keeps fighting.} 36. Bc7 Nd7) 36. Bc7 $1 {[%emt 0:00:27]} Nd7 {[%emt 0:00:02]} 37. Bf3 {[%emt 0:00:51]} Bc8 {[%emt 0:00:34]} 38. Bd5 {[%emt 0:01:07]} Ba6 {[%emt 0:00:26]} 39. Bg2 {[%emt 0:01:20]} Bc8 {[%emt 0:09:13]} 40. Bh1 {[%emt 0:00:30]} Kf7 {[%emt 0:00:19]} 41. Bd5+ {[%emt 0:52:27]} Ke7 {[%emt 0:49:05]} 42. Ke4 {[%emt 0:00:00]} Ba6 {[%emt 0:00:00]} 43. Kf5 {[%emt 0:00:00] Threatens to win with Ba8.} Bc8 $2 {[%emt 0:00:00]} (43... Nf8 44. Bxb6 Bc8+ 45. Ke4 f5+ 46. Ke3 (46. gxf5 Nd7 $16) 46... Nd7) 44. Be6 {[%emt 0:00:00] This bishop pair is nice.} Bb7 {[%emt 0:00:00]} (44... Ke8 $142 45. Bd5 Ke7) 45. Bxd7 {[%emt 0:00:00]} Kxd7 {[%emt 0:00:00]} 46. Bxb6 {[%emt 0:00:00] KB-KB} Bg2 {[%emt 0:00:00]} 47. Bxc5 {[%emt 0:00:00]} Kc6 {[%emt 0:00:00]} 48. Be7 {[%emt 0:00:00]} Kb6 {[%emt 0:00:00]} 49. Kxf6 {[%emt 0:00:00]} Bxh3 {[%emt 0:00:00]} 50. Kxg5 {[%emt 0:00:00] Strongly threatening Bd8+.} Bf1 {[%emt 0:00:00]} 51. Kf6 {[%emt 0:00:00] White mates.} Bd3 {[%emt 0:00:00]} 52. g5 {[%emt 0:00:00][%cal Bg4g5,Bg5g6][%mdl 32]} Bc2 {[%emt 0:00:00]} 53. b4 {[%emt 0:00:00]} axb4 {[%emt 0:00:00]} 54. Bxb4 {[%emt 0:00:00]} Bxa4 {[%emt 0:00:00]} 55. g6 {[%emt 0:00:00]} Bb3 {[%emt 0:00:00]} 56. c5+ {[%emt 0:00:00]} Kc6 {[%emt 0:00:00]} 57. Ke7 {[%emt 0:00:00] Weighted Error Value: White=0.15 (very precise) /Black=0.42} 1-0

[Event "81st Italian Championship 2022"]
[Site "Cagliari"]
[Date "2022.11.22"]
[Round "10.1"]
[White "Barp, Alberto"]
[Black "Lodici, Lorenzo"]
[Result "1/2-1/2"]
[WhiteElo "2412"]
[BlackElo "2536"]
[Annotator "TA"]
[PlyCount "34"]
[EventDate "2022.11.12"]
[EventType "tourn"]
[EventCountry "ITA"]
[SourceTitle "playchess.com"]
[Source "ChessBase"]
[SourceQuality "1"]
[TimeControl "40/6000+30:20/3000:900+30"]

{[%evp 17,19,-21,-25,-74]} 1. d4 {[%emt 0:03:41]} Nf6 {[%emt 0:00:16]} 2. c4 {[%emt 0:00:39]} e6 {[%emt 0:00:06]} 3. g3 {[%emt 0:00:13]} c5 {[%emt 0:00:29]} 4. d5 {[%emt 0:00:15]} exd5 {[%emt 0:00:06]} 5. cxd5 {[%emt 0:00:02]} b5 {[%emt 0:00:25]} 6. Bg2 {[%emt 0:00:29]} d6 {[%emt 0:00:05]} 7. e4 {[%emt 0:00:06]} g6 {[%emt 0:00:05]} 8. Ne2 {[%emt 0:00:06]} Bg7 {[%emt 0:00:05]} 9. O-O {[%emt 0:00:07]} O-O {[%emt 0:00:23]} 10. a4 {[%emt 0:00:17] [#] A60: Modern Benoni: Early Divergences.} (10. e5 $11 {is more appropriate.} dxe5 11. d6) {Predecessor:} 10... Re8 $146 11. axb5 Nxe4 12. Ra4 Bf5 13. Nbc3 Nxc3 14. Nxc3 Nd7 15. Ra6 Nb6 16. Bf4 Bc8 17. Ra2 a6 {0-1 (28) Tarini,G (2164)-Iniyan,P (2506) Chess.com INT 2020} 1/2-1/2

[Event "81st Italian Championship 2022"]
[Site "Cagliari"]
[Date "2022.11.22"]
[Round "10.3"]
[White "Lettieri, Giuseppe"]
[Black "Di Benedetto, Edoardo"]
[Result "1/2-1/2"]
[ECO "C07"]
[WhiteElo "2427"]
[BlackElo "2378"]
[Annotator "TA"]
[PlyCount "79"]
[EventDate "2022.11.12"]
[EventType "tourn"]
[EventCountry "ITA"]
[SourceTitle "playchess.com"]
[Source "ChessBase"]
[SourceQuality "1"]
[TimeControl "40/6000+30:20/3000:900+30"]

{[%evp 10,79,12,17,16,14,17,13,31,8,13,0,0,0,29,25,50,51,59,51,159,148,372,119,110,118,93,89,72,30,83,0,0,8,6,6,14,0,0,0,16,9,44,47,47,0,35,44,183,192,179,37,30,0,33,34,55,0,0,0,0,0,0,0,0,0,0,0,0,0,0,0]} 1. e4 {[%emt 0:00:02]} e6 {[%emt 0:00:05]} 2. d4 {[%emt 0:00:06]} d5 {[%emt 0:00:04]} 3. Nd2 {[%emt 0:00:05]} c5 {[%emt 0:00:05]} 4. exd5 {[%emt 0:00:10]} Qxd5 {[%emt 0:00:10]} 5. Ngf3 {[%emt 0:00:06]} cxd4 {[%emt 0:00:09]} 6. Bc4 {[%emt 0:00:07]} Qd7 {[%emt 0:00:21] C07: French Tarrasch: 3...c5, 4 Ngf3 and 4 exd5 Qxd5.} 7. O-O {[%emt 0:00:46][%mdl 1024] White has compensation.} Nc6 {[%emt 0:00:07]} 8. Nb3 {[%emt 0:00:40][%cal Rb3d4]} a6 {[%emt 0:00:06]} 9. a4 {[%emt 0:03:34]} Nf6 {[%emt 0:05:42]} 10. Qe2 {[%emt 0:00:36]} Qc7 {[%emt 0:02:54]} 11. Rd1 {[%emt 0:08:40]} Bd7 {[%emt 0:21:21]} 12. Nbxd4 {[%emt 0:09:05]} Nxd4 {[%emt 0:00:11]} 13. Rxd4 {[%emt 0:00:12]} ({Reject} 13. Nxd4 Bd6 $11) 13... Bc5 {[%emt 0:08:40]} 14. Bf4 {[%emt 0:03:36]} Qb6 {[%emt 0:03:20]} (14... Qc8 $14) 15. a5 $1 $16 {[%emt 0:14:38] [#]} Qa7 $146 {[%emt 0:04:07] [#]} (15... Qc6 $16 {is a better defense.}) ({Predecessor:} 15... Qxb2 16. Rdd1 Rc8 17. Ne5 Bb5 18. Bxb5+ Qxb5 19. c4 Qb3 20. Rd3 Qb4 21. Qa2 Ne4 {1-0 (55) Cuartas,J (2356)-Ramirez,C (2289) Medellin 2001}) 16. Rd3 $2 {[%emt 0:25:27]} (16. Rxd7 $1 $18 {[%mdl 512] and the rest is easy.} Nxd7 17. Bxe6 $1 Bxf2+ 18. Kh1) 16... O-O {[%emt 0:06:12]} 17. Ne5 {[%emt 0:03:57]} Bb5 {[%emt 0:01:32][%cal Of6d5]} 18. Bxb5 {[%emt 0:04:22] White is much more active.} axb5 {[%emt 0:00:07]} 19. Rg3 {[%emt 0:00:55]} (19. Bg5 $5 {[%cal Rg5f6]} Nd5 20. Rh3 $14) 19... Rfd8 {[%emt 0:05:16]} (19... Rad8 $11 {remains equal.}) 20. Nd3 {[%emt 0:07:43]} (20. Qf3 $16 {[%cal Og3g7] Rxg7+! would kill now.} Bxf2+ 21. Qxf2 Qxf2+ 22. Kxf2) 20... Rd5 $11 {[%emt 0:03:31]} 21. c3 {[%emt 0:04:00]} Rad8 {[%emt 0:07:30]} 22. Be5 {[%emt 0:04:49]} Ne8 {[%emt 0:02:08]} 23. b4 {[%emt 0:04:47]} Bd6 {[%emt 0:01:14]} 24. Bxd6 {[%emt 0:00:58]} R8xd6 {[%emt 0:05:12]} 25. h3 {[%emt 0:00:52]} Nc7 {[%emt 0:03:08]} 26. Nc5 {[%emt 0:01:47]} Rd8 $1 {[%emt 0:03:21]} 27. Qg4 {[%emt 0:01:19]} (27. Ne4 $14 Ne8 28. Rg5) 27... g6 {[%emt 0:05:50]} 28. Qh4 {[%emt 0:00:30]} Ne8 {[%emt 0:01:26]} (28... Rd1+ $14 29. Kh2 Qb8 30. Rxd1 Rxd1) 29. Qe7 $18 {[%emt 0:00:25][%cal Oc5e6] Strongly threatening Nxe6!} Qb8 {[%emt 0:00:30]} 30. Re1 {[%emt 0:04:25]} ({Avoid the trap} 30. Nxb7 $2 R8d7 31. Qh4 Qxb7 $19) ({White has to play} 30. Qxb7 $18 Rd1+ 31. Rxd1 Rxd1+ 32. Kh2 Qxb7 33. Nxb7) 30... Nd6 {[%emt 0:02:48] ...Nf5 is the strong threat.} 31. Rg4 {[%emt 0:02:28]} ({Wrong is} 31. Nd7 $2 {[#]} Rxd7 $1 {[%mdl 512]} 32. Qxd7 Nf5 33. Qxd5 exd5 $19) 31... Re8 {[%emt 0:02:44]} 32. Qf6 {[%emt 0:00:41]} Qc7 {[%emt 0:01:06]} 33. Rd4 {[%emt 0:00:38]} (33. Rg5 $14) 33... Rf5 $1 $11 {[%emt 0:01:25] The position is equal.} 34. Qh4 {[%emt 0:00:07] Black must now prevent g4.} Rxc5 {[%emt 0:01:29]} 35. bxc5 {[%emt 0:00:01]} Nf5 {[%emt 0:00:09]} 36. Qf4 {[%emt 0:01:51]} e5 {[%emt 0:00:06]} 37. Qc1 {[%emt 0:01:25] Threatens to win with Rd5.} Nxd4 {[%emt 0:00:16]} 38. cxd4 {[%emt 0:00:01]} Qxa5 {[%emt 0:00:55]} 39. dxe5 {[%emt 0:00:56]} b4 {[%emt 0:00:15]} 40. Qe3 {[%emt 0:03:05] Weighted Error Value: White=0.26 (precise) /Black=0.25 (precise)} 1/2-1/2

[Event "81st Italian Championship 2022"]
[Site "Cagliari"]
[Date "2022.11.22"]
[Round "10.5"]
[White "Godena, Michele"]
[Black "David, Alberto"]
[Result "1/2-1/2"]
[WhiteElo "2463"]
[BlackElo "2517"]
[Annotator "TA"]
[PlyCount "35"]
[EventDate "2022.11.12"]
[EventType "tourn"]
[EventCountry "ITA"]
[SourceTitle "playchess.com"]
[Source "ChessBase"]
[SourceQuality "1"]
[TimeControl "40/6000+30:20/3000:900+30"]

{[%evp 13,17,8,4,11,14,5]} 1. e4 {[%emt 0:00:03]} c5 {[%emt 0:00:29]} 2. c3 {[%emt 0:00:29]} Nf6 {[%emt 0:00:15]} 3. e5 {[%emt 0:00:08]} Nd5 {[%emt 0:00:06]} 4. Nf3 {[%emt 0:00:12]} e6 {[%emt 0:00:20]} 5. Bc4 {[%emt 0:00:14]} d6 {[%emt 0:00:10]} 6. d4 {[%emt 0:00:18]} cxd4 {[%emt 0:00:08]} 7. cxd4 {[%emt 0:00:12]} Be7 {[%emt 0:00:16]} 8. O-O {[%emt 0:00:15] B22: Sicilian: 2 c3.} O-O {[%emt 0:00:08]} 9. Qe2 {[%emt 0:00:51] [#] A rather calm draw.} {Predecessor:} dxe5 $146 10. dxe5 b6 11. Rd1 Bb7 12. Bxd5 exd5 13. Nc3 Qd7 14. Bf4 Na6 15. Nxd5 Bxd5 16. Qxa6 Rfd8 17. Bg3 h5 18. h4 {0-1 (32) Xiong,J (2688)-Fedoseev,V (2701) Chess.com INT 2022} 1/2-1/2